[Event "Titled Tuesday Blitz January 03 Late 2023"]
[White "Zierk, Steven"]
[Black "Blanco Acevedo, Cristobal Jose"]
[WhiteFideId "2034255"]
[BlackFideId "3900525"]
[WhiteElo "2488"]
[BlackElo "2310"]
[Result "1-0"]
[Round "01"]
[TimeControl "180+2"]
[Date "2023.01.03"]
[WhiteClock "0:00:39"]
[BlackClock "0:00:17"]

1. e4 {[%clk 0:03:00]}  c5 {[%clk 0:02:59]} 2. Nf3 {[%clk 0:03:00]}  Nc6 {[%clk 0:02:59]} 3. Bb5 {[%clk 0:03:00]}  e6 {[%clk 0:02:59]} 4. O-O {[%clk 0:02:59]}  Nge7 {[%clk 0:02:58]} 5. Re1 {[%clk 0:03:00]}  a6 {[%clk 0:02:55]} 6. Bf1 {[%clk 0:03:00]}  Ng6 {[%clk 0:02:55]} 7. c3 {[%clk 0:03:00]}  Be7 {[%clk 0:02:49]} 8. d4 {[%clk 0:02:59]}  cxd4 {[%clk 0:02:40]} 9. cxd4 {[%clk 0:03:00]}  d6 {[%clk 0:02:37]} 10. Nc3 {[%clk 0:02:58]}  O-O {[%clk 0:02:35]} 11. g3 {[%clk 0:02:54]}  b5 {[%clk 0:02:30]} 12. h4 {[%clk 0:02:50]}  b4 {[%clk 0:02:08]} 13. Ne2 {[%clk 0:02:45]}  Bf6 {[%clk 0:01:55]} 14. h5 {[%clk 0:02:26]}  Nge7 {[%clk 0:01:54]} 15. h6 {[%clk 0:02:23]}  g6 {[%clk 0:01:53]} 16. Be3 {[%clk 0:02:21]}  d5 {[%clk 0:01:48]} 17. e5 {[%clk 0:02:20]}  Bh8 {[%clk 0:01:48]} 18. Nf4 {[%clk 0:02:17]}  Nf5 {[%clk 0:01:46]} 19. Nd3 {[%clk 0:02:12]}  Nxe3 {[%clk 0:01:41]} 20. Rxe3 {[%clk 0:02:11]}  Ne7 {[%clk 0:01:38]} 21. Bh3 {[%clk 0:01:59]}  a5 {[%clk 0:01:37]} 22. Rc1 {[%clk 0:01:55]}  Bd7 {[%clk 0:01:34]} 23. Nc5 {[%clk 0:01:54]}  Rc8 {[%clk 0:01:32]} 24. Re2 {[%clk 0:01:50]}  Nf5 {[%clk 0:01:24]} 25. Bxf5 {[%clk 0:01:48]}  exf5 {[%clk 0:01:23]} 26. Qd2 {[%clk 0:01:44]}  Qe7 {[%clk 0:01:14]} 27. Qf4 {[%clk 0:01:41]}  Bb5 {[%clk 0:01:14]} 28. Rec2 {[%clk 0:01:41]}  f6 {[%clk 0:01:09]} 29. e6 {[%clk 0:01:33]}  a4 {[%clk 0:01:02]} 30. Qe3 {[%clk 0:01:18]}  Rc6 {[%clk 0:00:58]} 31. Nh4 {[%clk 0:01:17]}  Rfc8 {[%clk 0:00:55]} 32. Ng2 {[%clk 0:01:17]}  g5 {[%clk 0:00:40]} 33. Qf3 {[%clk 0:01:14]}  b3 {[%clk 0:00:33]} 34. axb3 {[%clk 0:01:12]}  axb3 {[%clk 0:00:33]} 35. Rc3 {[%clk 0:01:05]}  Bc4 {[%clk 0:00:28]} 36. Ne3 {[%clk 0:01:00]}  Rxc5 {[%clk 0:00:22]} 37. dxc5 {[%clk 0:00:59]}  Qxe6 {[%clk 0:00:23]} 38. Nxc4 {[%clk 0:00:57]}  dxc4 {[%clk 0:00:22]} 39. Rxc4 {[%clk 0:00:57]}  f4 {[%clk 0:00:20]} 40. gxf4 {[%clk 0:00:50]}  g4 {[%clk 0:00:20]} 41. Qxb3 {[%clk 0:00:42]}  f5 {[%clk 0:00:19]} 42. Rb4 {[%clk 0:00:39]}  Qxb3 {[%clk 0:00:17]} 43. Rxb3 {[%clk 0:00:40]}  Rc6 {[%clk 0:00:17]} 44. Rb6 {[%clk 0:00:39]} 1-0


[Site "https://www.chess.com"]

[Event "Titled Tuesday Blitz January 03 Late 2023"]
[White "Martin Carmona, Gaston Manuel"]
[Black "Svane, Frederik"]
[WhiteFideId "22284567"]
[BlackFideId "12923044"]
[WhiteElo "2333"]
[BlackElo "2600"]
[Result "1-0"]
[Round "01"]
[TimeControl "180+2"]
[Date "2023.01.03"]
[WhiteClock "0:00:40"]
[BlackClock "0:00:31"]

1. e4 {[%clk 0:03:00]}  e6 {[%clk 0:02:57]} 2. d4 {[%clk 0:02:57]}  d5 {[%clk 0:02:58]} 3. e5 {[%clk 0:02:53]}  c5 {[%clk 0:02:57]} 4. c3 {[%clk 0:02:54]}  Bd7 {[%clk 0:02:58]} 5. Nf3 {[%clk 0:02:54]}  Qb6 {[%clk 0:02:58]} 6. a3 {[%clk 0:02:43]}  c4 {[%clk 0:02:50]} 7. h4 {[%clk 0:02:38]}  Ne7 {[%clk 0:02:50]} 8. g3 {[%clk 0:02:37]}  Nbc6 {[%clk 0:02:49]} 9. Nbd2 {[%clk 0:02:37]}  Na5 {[%clk 0:02:48]} 10. Bh3 {[%clk 0:02:37]}  O-O-O {[%clk 0:02:48]} 11. O-O {[%clk 0:02:36]}  Kb8 {[%clk 0:02:48]} 12. Ng5 {[%clk 0:02:33]}  f6 {[%clk 0:02:38]} 13. Nf7 {[%clk 0:02:20]}  Rg8 {[%clk 0:02:39]} 14. Nxd8 {[%clk 0:02:20]}  Qxd8 {[%clk 0:02:40]} 15. exf6 {[%clk 0:02:13]}  gxf6 {[%clk 0:02:40]} 16. Nf3 {[%clk 0:02:13]}  Nec6 {[%clk 0:02:24]} 17. Bf4+ {[%clk 0:02:13]}  Ka8 {[%clk 0:02:22]} 18. Re1 {[%clk 0:02:03]}  Nb3 {[%clk 0:02:21]} 19. Rb1 {[%clk 0:01:59]}  Qe8 {[%clk 0:02:06]} 20. Qe2 {[%clk 0:01:58]}  Nd8 {[%clk 0:02:06]} 21. Nd2 {[%clk 0:01:56]}  Nxd2 {[%clk 0:01:53]} 22. Qxd2 {[%clk 0:01:54]}  Qg6 {[%clk 0:01:53]} 23. Bc7 {[%clk 0:01:49]}  Bh6 {[%clk 0:01:50]} 24. Qe2 {[%clk 0:01:44]}  f5 {[%clk 0:01:31]} 25. Be5 {[%clk 0:01:27]}  Nf7 {[%clk 0:01:22]} 26. b3 {[%clk 0:01:25]}  cxb3 {[%clk 0:01:19]} 27. Rxb3 {[%clk 0:01:26]}  Ba4 {[%clk 0:01:16]} 28. Rxb7 {[%clk 0:01:11]}  Nxe5 {[%clk 0:00:58]} 29. Qa6 {[%clk 0:00:42]}  Nc6 {[%clk 0:00:59]} 30. Reb1 {[%clk 0:00:42]}  Be3 {[%clk 0:00:31]} 31. Rxa7+ {[%clk 0:00:40]}  Nxa7 {[%clk 0:00:31]} 32. Qb7# {[%clk 0:00:40]} 1-0


[Site "https://www.chess.com"]

[Event "Titled Tuesday Blitz January 03 Late 2023"]
[White "Baskakov, Egor"]
[Black "Ibadov, Dashgyn"]
[WhiteFideId "24197866"]
[BlackFideId "24107514"]
[WhiteElo "2215"]
[BlackElo "2391"]
[Result "1-0"]
[Round "01"]
[TimeControl "180+2"]
[Date "2023.01.03"]
[WhiteClock "0:00:18"]
[BlackClock "0:00:02"]

1. e4 {[%clk 0:03:00]}  e5 {[%clk 0:02:59]} 2. Nc3 {[%clk 0:02:59]}  Nf6 {[%clk 0:02:58]} 3. g3 {[%clk 0:02:59]}  c6 {[%clk 0:02:52]} 4. Bg2 {[%clk 0:02:56]}  d5 {[%clk 0:02:52]} 5. d3 {[%clk 0:02:47]}  Bb4 {[%clk 0:02:33]} 6. a3 {[%clk 0:02:44]}  Ba5 {[%clk 0:02:32]} 7. b4 {[%clk 0:02:35]}  Bb6 {[%clk 0:02:23]} 8. exd5 {[%clk 0:02:18]}  cxd5 {[%clk 0:02:24]} 9. Nge2 {[%clk 0:02:18]}  O-O {[%clk 0:02:15]} 10. O-O {[%clk 0:02:15]}  Nc6 {[%clk 0:02:12]} 11. Bg5 {[%clk 0:02:15]}  Be6 {[%clk 0:01:59]} 12. Bxf6 {[%clk 0:02:08]}  gxf6 {[%clk 0:01:59]} 13. Kh1 {[%clk 0:02:08]}  Nd4 {[%clk 0:01:50]} 14. f4 {[%clk 0:02:07]}  Nxe2 {[%clk 0:01:47]} 15. Nxe2 {[%clk 0:01:59]}  Qd7 {[%clk 0:01:46]} 16. Qd2 {[%clk 0:01:54]}  Kh8 {[%clk 0:01:26]} 17. Rae1 {[%clk 0:01:43]}  Rac8 {[%clk 0:01:24]} 18. c3 {[%clk 0:01:34]}  Rg8 {[%clk 0:01:22]} 19. Qb2 {[%clk 0:01:12]}  a6 {[%clk 0:00:24]} 20. fxe5 {[%clk 0:01:07]}  fxe5 {[%clk 0:00:24]} 21. c4 {[%clk 0:01:08]}  d4 {[%clk 0:00:22]} 22. Ng1 {[%clk 0:00:57]}  Bc7 {[%clk 0:00:15]} 23. Nf3 {[%clk 0:00:56]}  f6 {[%clk 0:00:15]} 24. Nd2 {[%clk 0:00:56]}  Rg6 {[%clk 0:00:14]} 25. Ne4 {[%clk 0:00:56]}  Rf8 {[%clk 0:00:09]} 26. Nc5 {[%clk 0:00:56]}  Qc8 {[%clk 0:00:09]} 27. Nxe6 {[%clk 0:00:46]}  Qxe6 {[%clk 0:00:08]} 28. Qxd4 {[%clk 0:00:46]}  Rd8 {[%clk 0:00:05]} 29. Qa7 {[%clk 0:00:39]}  Rxd3 {[%clk 0:00:03]} 30. Qxb7 {[%clk 0:00:38]}  Bd8 {[%clk 0:00:02]} 31. Rd1 {[%clk 0:00:36]}  Rxd1 {[%clk 0:00:02]} 32. Rxd1 {[%clk 0:00:37]}  Be7 {[%clk 0:00:02]} 33. Qa8+ {[%clk 0:00:32]}  Rg8 {[%clk 0:00:02]} 34. Qd5 {[%clk 0:00:32]}  Qxd5 {[%clk 0:00:02]} 35. Bxd5 {[%clk 0:00:27]}  Rc8 {[%clk 0:00:02]} 36. c5 {[%clk 0:00:26]}  Kg7 {[%clk 0:00:02]} 37. Bb7 {[%clk 0:00:25]}  Rc7 {[%clk 0:00:02]} 38. c6 {[%clk 0:00:21]}  Kf7 {[%clk 0:00:01]} 39. Rb1 {[%clk 0:00:16]}  Ke6 {[%clk 0:00:01]} 40. a4 {[%clk 0:00:17]}  Kd6 {[%clk 0:00:01]} 41. b5 {[%clk 0:00:17]}  axb5 {[%clk 0:00:02]} 42. axb5 {[%clk 0:00:18]}  Kc5 {[%clk 0:00:02]} 43. b6 {[%clk 0:00:18]} 1-0


[Site "https://www.chess.com"]

[Event "Titled Tuesday Blitz January 03 Late 2023"]
[White "Ladan, Nicholas"]
[Black "Ibarra Jerez, Jose Carlos"]
[WhiteFideId "30918855"]
[BlackFideId "2226332"]
[WhiteElo "2228"]
[BlackElo "2563"]
[Result "0-1"]
[Round "01"]
[TimeControl "180+2"]
[Date "2023.01.03"]
[WhiteClock "0:00:01"]
[BlackClock "0:00:44"]

1. d4 {[%clk 0:02:55]}  Nf6 {[%clk 0:02:59]} 2. Bf4 {[%clk 0:02:54]}  d5 {[%clk 0:02:58]} 3. e3 {[%clk 0:02:53]}  c5 {[%clk 0:02:59]} 4. Nf3 {[%clk 0:02:51]}  Nc6 {[%clk 0:02:59]} 5. Nbd2 {[%clk 0:02:43]}  e6 {[%clk 0:02:57]} 6. c3 {[%clk 0:02:35]}  cxd4 {[%clk 0:02:57]} 7. exd4 {[%clk 0:02:34]}  Nh5 {[%clk 0:02:57]} 8. Be3 {[%clk 0:02:32]}  Bd6 {[%clk 0:02:57]} 9. Bd3 {[%clk 0:02:29]}  Nf4 {[%clk 0:02:56]} 10. Bxf4 {[%clk 0:02:21]}  Bxf4 {[%clk 0:02:57]} 11. O-O {[%clk 0:02:18]}  O-O {[%clk 0:02:36]} 12. Re1 {[%clk 0:02:14]}  g6 {[%clk 0:02:29]} 13. Ne5 {[%clk 0:02:01]}  Qc7 {[%clk 0:02:08]} 14. Ndf3 {[%clk 0:01:52]}  f6 {[%clk 0:02:04]} 15. Nxc6 {[%clk 0:01:47]}  bxc6 {[%clk 0:02:04]} 16. b4 {[%clk 0:01:17]}  Bh6 {[%clk 0:01:56]} 17. a4 {[%clk 0:01:11]}  Bg7 {[%clk 0:01:55]} 18. Qb3 {[%clk 0:01:09]}  Rb8 {[%clk 0:01:49]} 19. c4 {[%clk 0:01:00]}  Qd6 {[%clk 0:01:43]} 20. c5 {[%clk 0:00:57]}  Qc7 {[%clk 0:01:39]} 21. b5 {[%clk 0:00:47]}  e5 {[%clk 0:01:38]} 22. Qa2 {[%clk 0:00:40]}  Kh8 {[%clk 0:01:35]} 23. Bf1 {[%clk 0:00:17]}  e4 {[%clk 0:01:32]} 24. Nd2 {[%clk 0:00:16]}  f5 {[%clk 0:01:33]} 25. Nb3 {[%clk 0:00:16]}  f4 {[%clk 0:01:30]} 26. bxc6 {[%clk 0:00:14]}  Qxc6 {[%clk 0:01:30]} 27. Rab1 {[%clk 0:00:12]}  Qc7 {[%clk 0:01:25]} 28. a5 {[%clk 0:00:11]}  Bf5 {[%clk 0:01:21]} 29. Rb2 {[%clk 0:00:11]}  Rb4 {[%clk 0:01:20]} 30. a6 {[%clk 0:00:10]}  Rfb8 {[%clk 0:01:19]} 31. Qa3 {[%clk 0:00:08]}  Bxd4 {[%clk 0:01:03]} 32. Nxd4 {[%clk 0:00:07]}  Rxb2 {[%clk 0:01:04]} 33. Nxf5 {[%clk 0:00:07]}  gxf5 {[%clk 0:01:04]} 34. Qc3+ {[%clk 0:00:06]}  Qg7 {[%clk 0:01:03]} 35. Qa5 {[%clk 0:00:05]}  Qd4 {[%clk 0:01:01]} 36. Be2 {[%clk 0:00:02]}  f3 {[%clk 0:00:45]} 37. gxf3 {[%clk 0:00:01]}  exf3 {[%clk 0:00:45]} 38. Bf1 {[%clk 0:00:01]}  Qxf2+ {[%clk 0:00:44]} 0-1


[Site "https://www.chess.com"]

[Event "Titled Tuesday Blitz January 03 Late 2023"]
[White "Oliveira, Silvio Eduardo"]
[Black "Jovic, Stanoje"]
[WhiteFideId "2111560"]
[BlackFideId "905020"]
[WhiteElo "2297"]
[BlackElo "2075"]
[Result "1-0"]
[Round "01"]
[TimeControl "180+2"]
[Date "2023.01.03"]
[WhiteClock "0:02:28"]
[BlackClock "0:01:49"]

1. e4 {[%clk 0:03:00]}  c6 {[%clk 0:02:59]} 2. d4 {[%clk 0:03:00]}  d5 {[%clk 0:02:59]} 3. exd5 {[%clk 0:03:00]}  cxd5 {[%clk 0:02:59]} 4. Bd3 {[%clk 0:03:00]}  Nc6 {[%clk 0:02:58]} 5. c3 {[%clk 0:03:01]}  e5 {[%clk 0:02:58]} 6. dxe5 {[%clk 0:03:01]}  Nxe5 {[%clk 0:02:58]} 7. Nf3 {[%clk 0:03:00]}  Nxd3+ {[%clk 0:02:57]} 8. Qxd3 {[%clk 0:03:01]}  Nf6 {[%clk 0:02:57]} 9. O-O {[%clk 0:03:00]}  Be7 {[%clk 0:02:58]} 10. Re1 {[%clk 0:02:58]}  O-O {[%clk 0:02:57]} 11. Bg5 {[%clk 0:02:57]}  Bg4 {[%clk 0:02:51]} 12. Nbd2 {[%clk 0:02:54]}  Re8 {[%clk 0:02:47]} 13. Nd4 {[%clk 0:02:50]}  Qb6 {[%clk 0:02:39]} 14. Nf1 {[%clk 0:02:45]}  h6 {[%clk 0:02:34]} 15. Bxf6 {[%clk 0:02:42]}  Bxf6 {[%clk 0:02:32]} 16. Ne3 {[%clk 0:02:42]}  Be6 {[%clk 0:02:23]} 17. Re2 {[%clk 0:02:38]}  a5 {[%clk 0:02:22]} 18. Nxe6 {[%clk 0:02:34]}  fxe6 {[%clk 0:02:20]} 19. Rae1 {[%clk 0:02:33]}  a4 {[%clk 0:02:13]} 20. Nxd5 {[%clk 0:02:31]}  Qa6 {[%clk 0:01:49]} 21. Nxf6+ {[%clk 0:02:28]} 1-0


[Site "https://www.chess.com"]

[Event "Titled Tuesday Blitz January 03 Late 2023"]
[White "Khandelwal, Ankush"]
[Black "Zhigalko, Sergei"]
[WhiteFideId "413470"]
[BlackFideId "13502956"]
[WhiteElo "2205"]
[BlackElo "2572"]
[Result "0-1"]
[Round "01"]
[TimeControl "180+2"]
[Date "2023.01.03"]
[WhiteClock "0:00:18"]
[BlackClock "0:00:53"]

1. e4 {[%clk 0:03:00]}  c5 {[%clk 0:02:59]} 2. Nf3 {[%clk 0:03:00]}  Nc6 {[%clk 0:02:59]} 3. d4 {[%clk 0:03:00]}  cxd4 {[%clk 0:02:59]} 4. Nxd4 {[%clk 0:03:01]}  Nf6 {[%clk 0:03:00]} 5. Nc3 {[%clk 0:03:01]}  e5 {[%clk 0:03:00]} 6. Ndb5 {[%clk 0:03:01]}  d6 {[%clk 0:03:00]} 7. Bg5 {[%clk 0:03:01]}  a6 {[%clk 0:03:01]} 8. Na3 {[%clk 0:03:01]}  b5 {[%clk 0:03:01]} 9. Bxf6 {[%clk 0:03:01]}  gxf6 {[%clk 0:03:02]} 10. Nd5 {[%clk 0:03:02]}  Bg7 {[%clk 0:03:02]} 11. g3 {[%clk 0:03:01]}  f5 {[%clk 0:03:02]} 12. Bg2 {[%clk 0:02:50]}  fxe4 {[%clk 0:03:01]} 13. Bxe4 {[%clk 0:02:49]}  O-O {[%clk 0:02:50]} 14. Ne3 {[%clk 0:02:09]}  Bb7 {[%clk 0:02:19]} 15. Qh5 {[%clk 0:02:07]}  h6 {[%clk 0:02:18]} 16. Qf5 {[%clk 0:02:07]}  Re8 {[%clk 0:02:18]} 17. O-O-O {[%clk 0:01:23]}  Kf8 {[%clk 0:02:13]} 18. Qh7 {[%clk 0:01:11]}  Qf6 {[%clk 0:02:09]} 19. Rxd6 {[%clk 0:00:46]}  Re6 {[%clk 0:01:39]} 20. Rxe6 {[%clk 0:00:32]}  fxe6 {[%clk 0:01:40]} 21. Rf1 {[%clk 0:00:25]}  Ke7 {[%clk 0:01:31]} 22. c3 {[%clk 0:00:20]}  b4 {[%clk 0:01:13]} 23. Nb1 {[%clk 0:00:18]}  a5 {[%clk 0:01:07]} 24. f4 {[%clk 0:00:18]}  Rh8 {[%clk 0:01:05]} 25. Qg6 {[%clk 0:00:18]}  Qxg6 {[%clk 0:01:05]} 26. Bxg6 {[%clk 0:00:19]}  exf4 {[%clk 0:01:05]} 27. Rxf4 {[%clk 0:00:19]}  Bf6 {[%clk 0:01:01]} 28. cxb4 {[%clk 0:00:18]}  axb4 {[%clk 0:01:00]} 29. h4 {[%clk 0:00:17]}  Rg8 {[%clk 0:00:59]} 30. h5 {[%clk 0:00:18]}  Bg5 {[%clk 0:00:58]} 31. Re4 {[%clk 0:00:18]}  Nd4 {[%clk 0:00:56]} 32. Rxd4 {[%clk 0:00:18]}  Bxe3+ {[%clk 0:00:57]} 33. Rd2 {[%clk 0:00:19]}  Bd5 {[%clk 0:00:56]} 34. b3 {[%clk 0:00:18]}  Rf8 {[%clk 0:00:53]} 35. Kc2 {[%clk 0:00:18]}  Bxd2 {[%clk 0:00:53]} 36. Nxd2 {[%clk 0:00:19]}  Rf2 {[%clk 0:00:53]} 37. Kd3 {[%clk 0:00:19]}  Rg2 {[%clk 0:00:53]} 38. Kd4 {[%clk 0:00:18]}  Rxd2+ {[%clk 0:00:53]} 0-1


[Site "https://www.chess.com"]

[Event "Titled Tuesday Blitz January 03 Late 2023"]
[White "Mosadeghpour, Masoud"]
[Black "Mesic, Ismet"]
[WhiteFideId "12519278"]
[BlackFideId "14411105"]
[WhiteElo "2472"]
[BlackElo "2190"]
[Result "1-0"]
[Round "01"]
[TimeControl "180+2"]
[Date "2023.01.03"]
[WhiteClock "0:02:45"]
[BlackClock "0:01:34"]

1. e4 {[%clk 0:02:58]}  e5 {[%clk 0:02:58]} 2. Nf3 {[%clk 0:02:58]}  Nc6 {[%clk 0:02:58]} 3. Bb5 {[%clk 0:02:56]}  Nf6 {[%clk 0:02:57]} 4. d3 {[%clk 0:02:55]}  Bc5 {[%clk 0:02:55]} 5. c3 {[%clk 0:02:54]}  a6 {[%clk 0:02:55]} 6. Bxc6 {[%clk 0:02:53]}  dxc6 {[%clk 0:02:54]} 7. Nxe5 {[%clk 0:02:54]}  O-O {[%clk 0:02:51]} 8. O-O {[%clk 0:02:54]}  Re8 {[%clk 0:02:50]} 9. Nc4 {[%clk 0:02:52]}  b5 {[%clk 0:02:44]} 10. Be3 {[%clk 0:02:51]}  bxc4 {[%clk 0:02:41]} 11. Bxc5 {[%clk 0:02:52]}  Qxd3 {[%clk 0:02:40]} 12. Qxd3 {[%clk 0:02:51]}  cxd3 {[%clk 0:02:41]} 13. f3 {[%clk 0:02:52]}  Be6 {[%clk 0:02:37]} 14. Rd1 {[%clk 0:02:52]}  Rad8 {[%clk 0:02:36]} 15. Bd4 {[%clk 0:02:52]}  Bc4 {[%clk 0:02:35]} 16. Na3 {[%clk 0:02:51]}  Bb5 {[%clk 0:02:24]} 17. Bxf6 {[%clk 0:02:50]}  gxf6 {[%clk 0:02:24]} 18. c4 {[%clk 0:02:51]}  Rd4 {[%clk 0:02:12]} 19. cxb5 {[%clk 0:02:51]}  cxb5 {[%clk 0:02:13]} 20. Rac1 {[%clk 0:02:51]}  Re7 {[%clk 0:02:11]} 21. Rc5 {[%clk 0:02:50]}  Red7 {[%clk 0:02:11]} 22. Nb1 {[%clk 0:02:48]}  Kf8 {[%clk 0:02:08]} 23. Nc3 {[%clk 0:02:47]}  b4 {[%clk 0:02:05]} 24. Nd5 {[%clk 0:02:47]}  Kg7 {[%clk 0:02:00]} 25. Nxc7 {[%clk 0:02:47]}  d2 {[%clk 0:02:00]} 26. Nd5 {[%clk 0:02:46]}  f5 {[%clk 0:01:58]} 27. Ne3 {[%clk 0:02:44]}  f4 {[%clk 0:01:56]} 28. Nf5+ {[%clk 0:02:44]}  Kg6 {[%clk 0:01:44]} 29. Nxd4 {[%clk 0:02:45]}  Rxd4 {[%clk 0:01:44]} 30. Rd5 {[%clk 0:02:45]}  Rc4 {[%clk 0:01:42]} 31. R5xd2 {[%clk 0:02:45]}  a5 {[%clk 0:01:42]} 32. Rd6+ {[%clk 0:02:46]}  Kg7 {[%clk 0:01:41]} 33. h4 {[%clk 0:02:45]}  Rc2 {[%clk 0:01:40]} 34. R1d2 {[%clk 0:02:46]}  Rc1+ {[%clk 0:01:40]} 35. Kh2 {[%clk 0:02:46]}  a4 {[%clk 0:01:40]} 36. h5 {[%clk 0:02:46]}  b3 {[%clk 0:01:39]} 37. h6+ {[%clk 0:02:46]}  Kf8 {[%clk 0:01:39]} 38. axb3 {[%clk 0:02:43]}  axb3 {[%clk 0:01:38]} 39. Rb6 {[%clk 0:02:43]}  Rc2 {[%clk 0:01:36]} 40. Rxc2 {[%clk 0:02:43]}  bxc2 {[%clk 0:01:36]} 41. Rc6 {[%clk 0:02:44]}  c1=Q {[%clk 0:01:34]} 42. Rxc1 {[%clk 0:02:45]} 1-0


[Site "https://www.chess.com"]

[Event "Titled Tuesday Blitz January 03 Late 2023"]
[White "Fernandez Garcia, Gumersindo"]
[Black "Babazada, Khazar"]
[WhiteFideId "24516740"]
[BlackFideId "13413554"]
[WhiteElo "2160"]
[BlackElo "2474"]
[Result "0-1"]
[Round "01"]
[TimeControl "180+2"]
[Date "2023.01.03"]
[WhiteClock "0:00:46"]
[BlackClock "0:01:52"]

1. g3 {[%clk 0:02:56]}  d5 {[%clk 0:02:57]} 2. Bg2 {[%clk 0:02:57]}  Nf6 {[%clk 0:02:57]} 3. a3 {[%clk 0:02:54]}  e5 {[%clk 0:02:57]} 4. b4 {[%clk 0:02:54]}  Bd6 {[%clk 0:02:58]} 5. Bb2 {[%clk 0:02:54]}  Qe7 {[%clk 0:02:58]} 6. d3 {[%clk 0:02:51]}  a5 {[%clk 0:02:57]} 7. b5 {[%clk 0:02:39]}  O-O {[%clk 0:02:57]} 8. Nd2 {[%clk 0:02:31]}  Nbd7 {[%clk 0:02:57]} 9. e4 {[%clk 0:02:30]}  dxe4 {[%clk 0:02:57]} 10. dxe4 {[%clk 0:02:28]}  Nc5 {[%clk 0:02:58]} 11. Ne2 {[%clk 0:02:25]}  Be6 {[%clk 0:02:57]} 12. O-O {[%clk 0:02:24]}  Na4 {[%clk 0:02:57]} 13. Bc1 {[%clk 0:02:23]}  Nd7 {[%clk 0:02:31]} 14. c4 {[%clk 0:02:13]}  Ndc5 {[%clk 0:02:30]} 15. Qc2 {[%clk 0:02:11]}  c6 {[%clk 0:02:31]} 16. bxc6 {[%clk 0:02:10]}  bxc6 {[%clk 0:02:32]} 17. Nc3 {[%clk 0:01:58]}  Nxc3 {[%clk 0:02:29]} 18. Qxc3 {[%clk 0:01:58]}  Rfb8 {[%clk 0:02:23]} 19. Qc2 {[%clk 0:01:58]}  Qa7 {[%clk 0:02:19]} 20. Kh1 {[%clk 0:01:48]}  f6 {[%clk 0:02:18]} 21. f4 {[%clk 0:01:44]}  a4 {[%clk 0:02:18]} 22. Bb2 {[%clk 0:01:43]}  Rxb2 {[%clk 0:02:06]} 23. Qxb2 {[%clk 0:01:39]}  Nd3 {[%clk 0:02:01]} 24. Qc3 {[%clk 0:01:23]}  Nf2+ {[%clk 0:02:01]} 25. Rxf2 {[%clk 0:01:23]}  Qxf2 {[%clk 0:02:02]} 26. Rf1 {[%clk 0:01:22]}  Qc5 {[%clk 0:02:01]} 27. h4 {[%clk 0:01:11]}  Qxa3 {[%clk 0:02:01]} 28. Qxa3 {[%clk 0:00:59]}  Bxa3 {[%clk 0:02:02]} 29. fxe5 {[%clk 0:00:59]}  fxe5 {[%clk 0:02:03]} 30. Ra1 {[%clk 0:00:49]}  Bb2 {[%clk 0:01:50]} 31. Ra2 {[%clk 0:00:47]}  a3 {[%clk 0:01:51]} 32. Bf1 {[%clk 0:00:48]}  Rd8 {[%clk 0:01:51]} 33. Nb1 {[%clk 0:00:46]}  Rd1 {[%clk 0:01:52]} 0-1


[Site "https://www.chess.com"]

[Event "Titled Tuesday Blitz January 03 Late 2023"]
[White "Sanal, Vahap"]
[Black "Goncalves, Davi Sulzbacher"]
[WhiteFideId "6300545"]
[BlackFideId "2154510"]
[WhiteElo "2600"]
[BlackElo "2282"]
[Result "1-0"]
[Round "01"]
[TimeControl "180+2"]
[Date "2023.01.03"]
[WhiteClock "0:00:29"]
[BlackClock "0:00:01"]

1. Nf3 {[%clk 0:02:57]}  c5 {[%clk 0:02:59]} 2. e4 {[%clk 0:02:53]}  Nc6 {[%clk 0:02:59]} 3. Nc3 {[%clk 0:02:51]}  g6 {[%clk 0:02:59]} 4. Bb5 {[%clk 0:02:50]}  Bg7 {[%clk 0:02:58]} 5. Bxc6 {[%clk 0:02:51]}  dxc6 {[%clk 0:02:57]} 6. d3 {[%clk 0:02:50]}  Bg4 {[%clk 0:02:56]} 7. O-O {[%clk 0:02:50]}  e5 {[%clk 0:02:55]} 8. Be3 {[%clk 0:02:48]}  Qd6 {[%clk 0:02:49]} 9. h3 {[%clk 0:02:47]}  Bxf3 {[%clk 0:02:48]} 10. Qxf3 {[%clk 0:02:47]}  Nf6 {[%clk 0:02:47]} 11. Qe2 {[%clk 0:02:44]}  Nh5 {[%clk 0:02:44]} 12. a4 {[%clk 0:02:41]}  Nf4 {[%clk 0:02:38]} 13. Qf3 {[%clk 0:02:39]}  a5 {[%clk 0:02:25]} 14. Ne2 {[%clk 0:02:24]}  Ne6 {[%clk 0:02:04]} 15. Qg3 {[%clk 0:02:18]}  O-O {[%clk 0:01:56]} 16. Rae1 {[%clk 0:02:16]}  b5 {[%clk 0:01:52]} 17. Nc3 {[%clk 0:02:14]}  Nd4 {[%clk 0:01:37]} 18. axb5 {[%clk 0:02:04]}  cxb5 {[%clk 0:01:37]} 19. Bxd4 {[%clk 0:01:56]}  cxd4 {[%clk 0:01:38]} 20. Nd5 {[%clk 0:01:55]}  a4 {[%clk 0:01:32]} 21. Re2 {[%clk 0:01:47]}  b4 {[%clk 0:01:30]} 22. Ra1 {[%clk 0:01:43]}  a3 {[%clk 0:01:26]} 23. b3 {[%clk 0:01:41]}  Ra5 {[%clk 0:00:37]} 24. Qg5 {[%clk 0:01:40]}  f6 {[%clk 0:00:33]} 25. Qd2 {[%clk 0:01:39]}  Rb8 {[%clk 0:00:23]} 26. Ree1 {[%clk 0:01:39]}  h5 {[%clk 0:00:23]} 27. Rf1 {[%clk 0:01:38]}  Kh7 {[%clk 0:00:22]} 28. g3 {[%clk 0:01:38]}  Bh6 {[%clk 0:00:20]} 29. Qe2 {[%clk 0:01:36]}  Rxd5 {[%clk 0:00:18]} 30. exd5 {[%clk 0:01:36]}  Qxd5 {[%clk 0:00:19]} 31. Ra2 {[%clk 0:01:35]}  Qc6 {[%clk 0:00:17]} 32. Kh2 {[%clk 0:01:27]}  Re8 {[%clk 0:00:17]} 33. Rd1 {[%clk 0:01:24]}  f5 {[%clk 0:00:13]} 34. Re1 {[%clk 0:01:21]}  Qc3 {[%clk 0:00:09]} 35. Rf1 {[%clk 0:01:19]}  e4 {[%clk 0:00:07]} 36. Kg1 {[%clk 0:01:09]}  Re7 {[%clk 0:00:07]} 37. dxe4 {[%clk 0:01:10]}  fxe4 {[%clk 0:00:06]} 38. Qb5 {[%clk 0:01:03]}  d3 {[%clk 0:00:05]} 39. cxd3 {[%clk 0:01:00]}  exd3 {[%clk 0:00:06]} 40. Qd5 {[%clk 0:00:58]}  d2 {[%clk 0:00:02]} 41. Raa1 {[%clk 0:00:56]}  Qc1 {[%clk 0:00:01]} 42. Raxc1 {[%clk 0:00:34]}  dxc1=Q {[%clk 0:00:02]} 43. Rxc1 {[%clk 0:00:34]}  Bxc1 {[%clk 0:00:01]} 44. Qd6 {[%clk 0:00:35]}  Bg5 {[%clk 0:00:02]} 45. Qa6 {[%clk 0:00:30]}  Re1+ {[%clk 0:00:02]} 46. Kg2 {[%clk 0:00:30]}  Ra1 {[%clk 0:00:01]} 47. Qa7+ {[%clk 0:00:28]}  Kh6 {[%clk 0:00:02]} 48. Qd4 {[%clk 0:00:29]}  Rc1 {[%clk 0:00:01]} 49. Qh8# {[%clk 0:00:29]} 1-0


[Site "https://www.chess.com"]